Workbook

Sheet 0005
AJ2: 事業番号 | AR2: =IF(OR(AO2=" ", AO2=""), "", "-") ->  | AS2: 5 | AV2: =IF(AW2="", "", "-") -> 
A3: 平成３１年度行政事業レビューシート | AI3: （ | AJ3: 人事院 | AX3: ）
A4: 事業名 | G4: 研修の実施 | Y4: 担当部局庁 | AE4: 公務員研修所 | AQ4: 作成責任者
A5: 事業開始年度 | G5: 昭和38年度 | M5: 事業終了 （予定）年度 | S5: 終了予定なし | Y5: 担当課室 | AE5: 教務部 | AQ5: 部長 原田 三嘉
A6: 会計区分 | G6: 一般会計
A7: 根拠法令 （具体的な 条項も記載） | G7: 国家公務員法第70条の6第１項第１号、人事院規則10―14 | Y7: 関係する計画、通知等 | AE7: 平成30年度研修実施計画
A8: 主要政策・施策 | G8: - | Y8: 主要経費 | AE8: その他の事項経費
A9: 事業の目的 （目指す姿を簡潔に。3行程度以内） | G9: 本府省において主に政策立案に従事する（従事することが想定される）新規採用職員、3年目係員、係長、課長補佐及び課長級以上の各階層の職員を対象として、省庁間横断の研修を行うことにより、国民全体の奉仕者としての使命感の徹底、職員の能力及び資質の向上を図るとともに、研修員間の相互理解・信頼関係を醸成し、セクショナリズムの弊害の排除に資する。
A10: 事業概要 （5行程度以内。別添可） | G10: 新規採用者から課長級以上の職員まで省庁間横断の階層別研修を合宿又は通勤方式により3日間～5週間で実施。研修カリキュラムは、公務員倫理や行政の在り方など国民全体の奉仕者としての使命と職責について考える科目、政策課題研究などの公共政策の在り方を多角的に検証し考える科目、リーダーシップやマネジメントなど公正な行政運営について学ぶ科目で構成し、研修員相互のグループ討議や意見交換などを重視。
A11: 実施方法 | G11: 直接実施
A12: 予算額・ 執行額 （単位:百万円） | P12: 28年度 | W12: 29年度 | AD12: 30年度 | AK12: 31年度 | AR12: 32年度要求
G13: 予算の状況 | I13: 当初予算 | P13: 121 | W13: 121 | AD13: 119 | AK13: 119
I14: 補正予算 | P14: 0 | W14: 0 | AD14: 0
I15: 前年度から繰越し | P15: 0 | W15: 0 | AD15: 0 | AK15: 0
I16: 翌年度へ繰越し | P16: 0 | W16: 0 | AD16: 0
I17: 予備費等 | P17: 0 | W17: 0 | AD17: 0
I18: 計 | P18: =SUM(P13:V17) -> 121 | W18: =SUM(W13:AC17) -> 121 | AD18: =SUM(AD13:AJ17) -> 119 | AK18: =SUM(AK13:AQ17) -> 119 | AR18: =SUM(AR13:AX17) -> 0
G19: 執行額 | P19: 109 | W19: 113 | AD19: 120
G20: 執行率（％） | P20: =P19/P18 -> 0.9008264463 | W20: =W19/W18 -> 0.9338842975 | AD20: =IF(AD18=0, "-", SUM(AD19)/AD18) -> 1.008403361
G21: 当初予算＋補正予算に対する執行額の割合（％） | P21: =P19/SUM(P13:V14) -> 0.9008264463 | W21: =W19/SUM(W13:AC14) -> 0.9338842975 | AD21: =IF(AD19=0, "-", SUM(AD19)/SUM(AD13,AD14)) -> 1.008403361
A22: 平成31・32年度 予算内訳 （単位：百万円） | G22: 歳出予算目 | P22: 31年度当初予算 | W22: 32年度要求 | AD22: 主な増減理由
G23: 職員旅費 | P23: 79.2
G24: 研修所庁費 | P24: 20.7
G25: 諸謝金 | P25: 17.6
G26: 講師等旅費 | P26: 1.3
G29: 計 | P29: =AK13 -> 119 | W29: =AR13 -> 0
A30: 成果目標及び 成果実績 （アウトカム） | G30: 定量的な成果目標 | P30: 成果指標 | AB30: 単位 | AE30: 28年度 | AI30: 29年度 | AM30: 30年度 | AQ30: 中間目標 | AU30: 目標最終年度
AQ31: - | AS31: 年度 | AU31: - | AW31: 年度
G32: 研修を有意義であったとした者の割合を95％以上にする。 | P32: 研修受講者個人に対するアンケートを基に行政研修ごとに算出した割合の平均値 | Y32: 成果実績 | AB32: ％ | AE32: 97.3 | AI32: 96.1 | AM32: 97.6
Y33: 目標値 | AB33: ％ | AE33: 95 | AI33: 95 | AM33: 95
Y34: 達成度 | AB34: ％ | AE34: =AE32/AE33*100 -> 102.4210526 | AI34: =AI32/AI33*100 -> 101.1578947 | AM34: 102.7
A35: 根拠として用いた 統計・データ名 （出典） | G35: -
A37: 活動指標及び 活動実績 （アウトプット） | G37: 活動指標 | AB37: 単位 | AE37: 28年度 | AI37: 29年度 | AM37: 30年度 | AQ37: 31年度 活動見込 | AU37: 32年度 活動見込
G38: 研修実施回数及び修了者数 | Y38: 活動実績 | AB38: コース（人） | AE38: 43(3,388) | AI38: 41(3,126) | AM38: 40(2,993)
Y39: 当初見込み | AB39: コース | AE39: 44 | AI39: 43 | AM39: 42 | AQ39: 42
A40: 活動指標及び 活動実績 （アウトプット） | G40: 活動指標 | AB40: 単位 | AE40: 28年度 | AI40: 29年度 | AM40: 30年度 | AQ40: 31年度 活動見込 | AU40: 32年度 活動見込
Y41: 活動実績
Y42: 当初見込み
A43: 活動指標及び 活動実績 （アウトプット） | G43: 活動指標 | AB43: 単位 | AE43: 28年度 | AI43: 29年度 | AM43: 30年度 | AQ43: 31年度 活動見込 | AU43: 32年度 活動見込
Y44: 活動実績
Y45: 当初見込み
A46: 活動指標及び 活動実績 （アウトプット） | G46: 活動指標 | AB46: 単位 | AE46: 28年度 | AI46: 29年度 | AM46: 30年度 | AQ46: 31年度 活動見込 | AU46: 32年度 活動見込
Y47: 活動実績
Y48: 当初見込み
A49: 活動指標及び 活動実績 （アウトプット） | G49: 活動指標 | AB49: 単位 | AE49: 28年度 | AI49: 29年度 | AM49: 30年度 | AQ49: 31年度 活動見込 | AU49: 32年度 活動見込
Y50: 活動実績
Y51: 当初見込み
A52: 単位当たり コスト | G52: 算出根拠 | AB52: 単位 | AE52: 28年度 | AI52: 29年度 | AM52: 30年度 | AQ52: 31年度活動見込
G53: 執行額／研修受講者数 | Y53: 単位当たり コスト | AB53: 円 | AE53: 32172 | AI53: 36148 | AM53: 40094
Y54: 計算式 | AB54: 百万円/人 | AE54: 109/3,388 | AI54: 113/3,126 | AM54: 120/2,993
A55: 事業所管部局による点検・改善
C56: 項 目 | AD56: 評 価 | AG56: 評価に関する説明
A57: 国費投入の必要性 | C57: 事業の目的は国民や社会のニーズを的確に反映しているか。 | AD57: ○ | AG57: 府省庁等の垣根を越えて全体の奉仕者としての公務員に必要な資質や政策立案能力を涵養していく上では、中立公正な中央人事行政機関である人事院が合同研修を実施することに意義がある。
C58: 地方自治体、民間等に委ねることができない事業なのか。 | AD58: ○
C59: 政策目的の達成手段として必要かつ適切な事業か。政策体系の中で優先度の高い事業か。 | AD59: ○
A60: 事業の効率性 | C60: 競争性が確保されているなど支出先の選定は妥当か。 | AD60: ○ | AG60: 予算執行の透明性を高めるべく公募を行っているものの、古典を教材とする思索型プログラムという特殊な手法の研修であるため、一者応札となった支出がある。 また、約800人程度の宿泊施設、研修実施施設、食堂等が同一敷地内に設置されている都心の施設という合同初任研修の実施に必要な条件を満たすオリンピックセンターの借料に係る契約及び、韓国政府機関への韓国派遣研修に関する実施委託費の支払に係る契約については、競争性のない随意契約となったものである。
E61: 一般競争契約、指名競争契約又は随意契約（企画競争）による支出のうち、一者応札又は一者応募となったものはないか。 | AD61: 有
E62: 競争性のない随意契約となったものはないか。 | AD62: 有
C63: 受益者との負担関係は妥当であるか。 | AD63: ○ | AG63: 研修施設のキャパシティを最大限に活かしてより多くの研修コースを効率的に実施できるよう年間計画を策定するとともに、研修効果が最大限図られるよう合理的なカリキュラムを構成して随時見直しを行うなど、効率的に事業運営を行っている。
C64: 単位当たりコスト等の水準は妥当か。 | AD64: ○
C65: 資金の流れの中間段階での支出は合理的なものとなっているか。 | AD65: ‐
C66: 費目・使途が事業目的に即し真に必要なものに限定されているか。 | AD66: ○
C67: 不用率が大きい場合、その理由は妥当か。（理由を右に記載） | AD67: ‐
C68: 繰越額が大きい場合、その理由は妥当か。（理由を右に記載） | AD68: ‐
C69: その他コスト削減や効率化に向けた工夫は行われているか。 | AD69: ○
A70: 事業の有効性 | C70: 成果実績は成果目標に見合ったものとなっているか。 | AD70: ○ | AG70: 公務員研修所及び西ケ原研修合同庁舎を有効に活用して計画的に多くの研修コースを効率的に実施している。 限られた予算の範囲内で各界の優れた講師を招くとともに、各府省の協力も得ながら効果的に研修を実施できている。研修受講者の満足度は極めて高くなっていることから、十分な研修効果を挙げていると考える。
C71: 事業実施に当たって他の手段・方法等が考えられる場合、それと比較してより効果的あるいは低コストで実施できているか。 | AD71: ○
C72: 活動実績は見込みに見合ったものであるか。 | AD72: ○
C73: 整備された施設や成果物は十分に活用されているか。 | AD73: ○
A74: 関連事業 | C74: 関連する事業がある場合、他部局・他府省等と適切な役割分担を行っているか。（役割分担の具体的な内容を各事業の右に記載） | AD74: ○ | AG74: 国家公務員法は、国家公務員に対する研修は、人事院、内閣人事局及び各府省で行う旨規定しており、人事院は国民全体の奉仕者としての使命の自覚及び多角的な視点等を有する職員の育成等のための研修を、内閣人事局は内閣の重要施策の理解を深めることを通じた施策の統一性の確保のための研修を、各府省はその所掌事務に係る知識及び技術の付与に必要な研修をそれぞれ行っている。
C75: 所管府省名 | G75: 事業番号 | N75: 事業名
I76: =IF(OR(G76=" ", G76=""), "", "-") ->  | L76: =IF(M76="","","-") -> 
I77: =IF(OR(G77=" ", G77=""), "", "-") ->  | L77: =IF(M77="","","-") -> 
A81: 点検・改善結果 | C81: 点検結果 | G81: 事業目的に照らし、計画どおりに実施している。謝金については、民間における謝金水準より相当低く、また、研修所が都内から離れているにもかかわらず、各界に優れた講師を確保しており、高い研修効果が得られていると考える。１人当たりの研修費用としても低い価格に抑えられており、費用対効果を考えても十分な効果が得られていると考える。研修内容については、その時々の情勢や各府省のニーズに応じ研修内容を充実させており、各研修とも研修受講者から高い評価を得ている。
C82: 改善の 方向性 | G82: 今後もより効果的な研修の実施方法を模索し、さらに効率的に予算を執行していくこととする。
A83: 外部有識者の所見
A85: 行政事業レビュー・調達改善推進チームの所見
A87: 所見を踏まえた改善点/概算要求における反映状況
A89: 備考
A91: 関連する過去のレビューシートの事業番号
A92: 平成22年度 | E92: - | N92: 平成23年度 | R92: - | AA92: 平成24年度 | AE92: 4 | AN92: 平成25年度 | AR92: 4
A93: 平成26年度 | E93: 4 | N93: 平成27年度 | R93: 4 | AA93: 平成28年度 | AE93: 4 | AN93: 平成29年度 | AR93: 4
A94: 平成30年度 | H94: =IF(E94="", "", "(") ->  | K94: 5 | N94: =IF(O94="", "", "-") ->  | P94: =IF(E94="", "", ")") ->  | T94: =IF(Q94="", "", "(") ->  | W94: =IF(OR(U94=" ", U94=""), "", "-") ->  | Z94: =IF(AA94="", "", "-") ->  | AB94: =IF(Q94="", "", ")") ->  | AF94: =IF(AC94="", "", "(") ->  | AI94: =IF(OR(AG94=" ", AG94=""), "", "-") ->  | AL94: =IF(AM94="", "", "-") ->  | AN94: =IF(AC94="", "", ")") -> 
A95: 資金の流れ （資金の受け取り先が何を行っているかについて補足する） （単位：百万円） | G95: ※平成30年度実績を記入。執行実績がない新規事業、新規要求事業については現時点で予定やイメージを記入。
AB97: 【随意契約（少額）】
AB98: A.明治堂印刷(株)ほか 0.5百万円
AB99: (研修実施結果報告書等に係る印刷製本費）
AB100: 【随意契約（公募）等】
J101: 人事院 120百万円 | AB101: B.(一社)日本アスペン研究所ほか 14.0百万円
AB102: (現場研修等の外部委託費)
AB103: 【随意契約（その他）等】
AB104: C.(独)国立青少年教育振興機構ほか 7.0百万円
AB105: (研修実施に係る借料等）
AB106: 【諸謝金】
AB107: D.個人 17.0百万円
AB108: (研修実施に係る講師等謝金）
AB110: E.事務費 82.0百万円
AB111: （研修実施に係る会議費、通信運搬費、クリーニング代等の雑役務費及び研修員の旅費等）
A130: 費目・使途 （「資金の流れ」においてブロックごとに最大の金額が支出されている者について記載する。費目と使途の双方で実情が分かるように記載） | G130: A. | AC130: B.（一社）日本アスペン研究所
G131: 費 目 | L131: 使 途 | Y131: 金 額 (百万円） | AC131: 費 目 | AH131: 使 途 | AU131: 金 額 (百万円）
AC132: 雑役務費 | AH132: 幹部行政官セミナー実施委託費 | AU132: 2.9
G133: 計 | Y133: =SUM(Y132:AB132) -> 0 | AC133: 計 | AU133: =SUM(AU132:AX132) -> 2.9
G134: C.（独）国立青少年教育振興機構 | AC134: D.個人Ａ
G135: 費 目 | L135: 使 途 | Y135: 金 額 (百万円） | AC135: 費 目 | AH135: 使 途 | AU135: 金 額 (百万円）
G136: 借料及び損料 | L136: 合同初任研修の外部施設借用 | Y136: 4.1 | AC136: 諸謝金 | AH136: 初任行政研修ほか講師 | AU136: 1.2
G137: 計 | Y137: =SUM(Y136:AB136) -> 4.1 | AC137: 計 | AU137: =SUM(AU136:AX136) -> 1.2
G138: E. | AC138: F.
G139: 費 目 | L139: 使 途 | Y139: 金 額 (百万円） | AC139: 費 目 | AH139: 使 途 | AU139: 金 額 (百万円）
G150: 計 | Y150: =SUM(Y140:AB149) -> 0 | AC150: 計 | AU150: =SUM(AU140:AX149) -> 0
G151: G. | AC151: H.
G152: 費 目 | L152: 使 途 | Y152: 金 額 (百万円） | AC152: 費 目 | AH152: 使 途 | AU152: 金 額 (百万円）
G162: 計 | Y162: =SUM(Y136:AB136) -> 4.1 | AC162: 計 | AU162: =SUM(AU136:AX136) -> 1.2
B166: 支出先上位１０者リスト
B167: A.
C168: 支 出 先 | J168: 法 人 番 号 | P168: 業 務 概 要 | Y168: 支 出 額 （百万円） | AC168: 契約方式等 | AH168: 入札者数 （応募者数） | AL168: 落札率 | AP168: 一者応札・一者応募又は 競争性のない随意契約となった 理由及び改善策 （支出額10億円以上）
A169: 1 | B169: 1 | C169: 明治堂印刷(株) | J169: 2030001027355 | P169: 初任行政研修ガイドブックほか | Y169: 0.3 | AC169: 随意契約 （少額） | AH169: -
A170: 2 | B170: 1 | C170: 東洋印刷(株) | J170: 3130001021789 | P170: 初任行政研修実施結果報告書 | Y170: 0.2 | AC170: 随意契約 （少額） | AH170: -
A171: 6 | B171: 1
A172: 7 | B172: 1
A173: 8 | B173: 1
A174: 9 | B174: 1
A175: 10 | B175: 1
A176: 11 | B176: 1
A177: 12 | B177: 1
A178: 13 | B178: 1
A179: 14 | B179: 1
A180: 15 | B180: 1
A181: 16 | B181: 1
A182: 17 | B182: 1
A183: 18 | B183: 1
A184: 19 | B184: 1
A185: 20 | B185: 1
A186: 21 | B186: 1
A187: 22 | B187: 1
A188: 23 | B188: 1
A189: 24 | B189: 1
A190: 25 | B190: 1
A191: 26 | B191: 1
A192: 27 | B192: 1
A193: 28 | B193: 1
A194: 29 | B194: 1
A195: 30 | B195: 1
B197: B
C198: 支 出 先 | J198: 法 人 番 号 | P198: 業 務 概 要 | Y198: 支 出 額 （百万円） | AC198: 契約方式等 | AH198: 入札者数 （応募者数） | AL198: 落札率 | AP198: 一者応札・一者応募又は 競争性のない随意契約となった 理由及び改善策 （支出額10億円以上）
A199: 1 | B199: 1 | C199: （一社）日本アスペン研究所 | J199: 6010405008144 | P199: 幹部行政官セミナー実施委託費 | Y199: 3 | AC199: 随意契約 （公募） | AH199: -
A200: 2 | B200: 1 | C200: 大韓民国国家公務員人材開発院 | P200: 行政研修（課長補佐級）韓国派遣研修実施委託費 | Y200: 2 | AC200: 随意契約 （その他） | AH200: -
A201: 3 | B201: 1 | C201: K/Hコミュニケーションズ(株) | J201: 6011801019494 | P201: 行政研修（係員級特別課程）英語研修実施委託費ほか | Y201: 1 | AC201: 随意契約 （少額） | AH201: -
A202: 4 | B202: 1 | C202: （一社）あすびと福島 | J202: 7010405010693 | P202: 初任行政研修被災地派遣実施委託費 | Y202: 1 | AC202: 随意契約 （少額） | AH202: -
A203: 5 | B203: 1 | C203: 特定非営利活動法人エティック | J203: 8011005001090 | P203: 初任行政研修現場訪問実施委託費 | Y203: 1 | AC203: 随意契約 （少額） | AH203: -
A204: 6 | B204: 1 | C204: （社）ＭＯＲＩＵＭＩＵＳ | J204: 3010905002319 | P204: 初任行政研修被災地派遣実施委託費 | Y204: 1 | AC204: 随意契約 （少額） | AH204: -
A205: 7 | B205: 1 | C205: （株）総合防災ソリューション | J205: 4010001013707 | P205: 初任行政研修防災・危機管理演習実施委託費 | Y205: 0.7 | AC205: 随意契約 （少額） | AH205: -
A206: 8 | B206: 1 | C206: （一社）日本国際協力センター | J206: 6011105000218 | P206: 初任行政研修東南アジア政府職員との意見交換実施委託費 | Y206: 0.6 | AC206: 随意契約 （少額） | AH206: -
A207: 9 | B207: 1 | C207: （一社）ダイアローグ・ジャパン・ソサエティ | J207: 4011005003611 | P207: ３年目フォローアップ研修実施委託費 | Y207: 0.4 | AC207: 随意契約 （少額） | AH207: -
A208: 10 | B208: 1 | C208: 加留部貴行事務所ＡＮ－ＢＡＩ | P208: ３年目フォローアップ研修ファシリテーション実施委託費 | Y208: 0.3 | AC208: 随意契約 （少額） | AH208: -
A209: 13 | B209: 1
A210: 14 | B210: 1
A211: 15 | B211: 1
A212: 16 | B212: 1
A213: 17 | B213: 1
A214: 18 | B214: 1
A215: 19 | B215: 1
A216: 20 | B216: 1
A217: 21 | B217: 1
A218: 22 | B218: 1
A219: 23 | B219: 1
A220: 24 | B220: 1
A221: 25 | B221: 1
A222: 26 | B222: 1
A223: 27 | B223: 1
A224: 28 | B224: 1
A225: 29 | B225: 1
A226: 30 | B226: 1
B228: C
C229: 支 出 先 | J229: 法 人 番 号 | P229: 業 務 概 要 | Y229: 支 出 額 （百万円） | AC229: 契約方式等 | AH229: 入札者数 （応募者数） | AL229: 落札率 | AP229: 一者応札・一者応募又は 競争性のない随意契約となった 理由及び改善策 （支出額10億円以上）
A230: 1 | B230: 1 | C230: （独）国立青少年教育振興機構 | J230: 8011005001124 | P230: 合同初任研修の外部施設借用 | Y230: 4 | AC230: 随意契約 （その他） | AH230: -
A231: 2 | B231: 1 | C231: イーグルトラベル(株) | J231: 5030001054293 | P231: 初任行政研修企業等訪問に係るバス借り上げほか | Y231: 1 | AC231: 随意契約 （少額） | AH231: -
A232: 3 | B232: 1 | C232: （株）和光輸送 和光観光トラベル | J232: 6030001046918 | P232: 初任行政研修企業等訪問に係るバス借り上げほか | Y232: 0.7 | AC232: 随意契約 （少額） | AH232: -
A233: 4 | B233: 1 | C233: 浜通り交通(株) | J233: 2380001016963 | P233: 行政研修（課長級）福島現場訪問に係るバス借り上げ | Y233: 0.3 | AC233: 随意契約 （少額） | AH233: -
A234: 5 | B234: 1 | C234: 丸大トラベルサービス（株） | J234: 7030001027280 | P234: 行政研修（課長補佐級）企業等訪問に係るバス借り上げほか | Y234: 0.3 | AC234: 随意契約 （少額） | AH234: -
A235: 6 | B235: 1 | C235: いずみ観光(株) | J235: 5500001011107 | P235: 課長補佐級リーダーシップ愛媛研修現場訪問に係るバス借り上げ | Y235: 0.1 | AC235: 随意契約 （少額） | AH235: -
A236: 7 | B236: 1 | C236: 大新東(株)有明営業所 | J236: 8012401019180 | P236: 行政研修（係員級特別課程）現場訪問に係るバス借り上げ | Y236: 0.1 | AC236: 随意契約 （少額） | AH236: -
A237: 8 | B237: 1 | C237: (株)オンザウェイ | J237: 6012301000473 | P237: 現場訪問における音声案内用無線機レンタル | Y237: 0.1 | AC237: 随意契約 （少額） | AH237: -
A238: 9 | B238: 1
A239: 10 | B239: 1
A240: 11 | B240: 1
A241: 12 | B241: 1
A242: 13 | B242: 1
A243: 14 | B243: 1
A244: 15 | B244: 1
A245: 16 | B245: 1
A246: 17 | B246: 1
A247: 18 | B247: 1
A248: 19 | B248: 1
A249: 20 | B249: 1
A250: 21 | B250: 1
A251: 22 | B251: 1
A252: 23 | B252: 1
A253: 24 | B253: 1
A254: 25 | B254: 1
A255: 26 | B255: 1
... 188 more rows
